[Event "VIII Open Semana Santa 2024"]
[Site "San Vicente del Raspeig"]
[Date "2024.03.31"]
[Round "7.15"]
[White "Niedbala, Bartlomiej"]
[Black "Garriga Cazorla, Pere"]
[Result "1/2-1/2"]
[ECO "B67"]
[WhiteElo "2388"]
[BlackElo "2460"]
[Annotator "TA"]
[PlyCount "59"]
[EventDate "2024.03.27"]
[EventType "swiss"]
[EventCountry "ESP"]
[SourceTitle "playchess.com"]
[Source "ChessBase"]
[SourceQuality "1"]
[TimeControl "5400+30"]

{[%evp 21,59,13,35,12,21,18,20,37,27,19,86,97,101,87,115,103,91,56,43,59,41,12,70,79,66,64,74,74,51,73,63,37,40,40,47,14,14,10,14,0]} 1. e4 {[%emt 0:01:30]} c5 {[%emt 0:02:34]} 2. Nf3 {[%emt 0:00:12]} d6 {[%emt 0:00:57]} 3. d4 {[%emt 0:00:02]} cxd4 {[%emt 0:00:05]} 4. Nxd4 {[%emt 0:00:06]} Nf6 {[%emt 0:00:02]} 5. Nc3 {[%emt 0:00:03]} Nc6 {[%emt 0:00:02]} 6. Bg5 {[%emt 0:01:08]} Bd7 {[%emt 0:00:06]} 7. Qd2 {[%emt 0:03:10]} a6 {[%emt 0:01:26]} 8. O-O-O {[%emt 0:02:11]} e6 {[%emt 0:00:06]} 9. Kb1 {[%emt 0:02:47]} Be7 {[%emt 0:02:43]} 10. Nxc6 {[%emt 0:03:50]} Bxc6 {[%emt 0:01:22]} 11. f3 {[%emt 0:01:15]} b5 {[%emt 0:00:35]} 12. Bd3 {[%emt 0:07:35]} Rc8 {[%emt 0:01:27]} 13. h4 {[%emt 0:02:15]} h6 {[%emt 0:03:24]} 14. Be3 {[%emt 0:02:50]} d5 {[%emt 0:15:42] White must now prevent ...d4.} 15. e5 {[%emt 0:16:51]} d4 {[%emt 0:06:46]} (15... Nd7 $11) 16. exf6 $16 {[%emt 0:02:09]} Bxf6 {[%emt 0:00:11] [#]} 17. Bxb5 $1 {[%emt 0:09:07][%mdl 512]} dxc3 {[%emt 0:09:12]} (17... axb5 18. Bxd4) 18. Qxd8+ {[%emt 0:00:53]} (18. Bxc6+ {simplifies} Rxc6 19. Qxd8+ Bxd8 20. b4) 18... Bxd8 {[%emt 0:00:02]} 19. Bxa6 {[%emt 0:02:40] White is more active.} (19. Bxc6+ {simplifies} Rxc6 20. b4 Bb6 21. Bxb6 Rxb6 22. Rd4) 19... Ra8 {[%emt 0:00:02]} 20. Bc4 {[%emt 0:00:23] And now b3 would win.} cxb2 {[%emt 0:00:06]} 21. Bd4 {[%emt 0:04:51]} Bf6 {[%emt 0:01:59]} (21... O-O $11) 22. Bxf6 $14 {[%emt 0:03:46]} gxf6 {[%emt 0:00:02]} 23. Rd6 {[%emt 0:00:04]} Rc8 {[%emt 0:04:11] [#]} 24. Rxc6 $1 {[%emt 0:07:09]} Rxc6 $16 {[%emt 0:00:05][%mdl 4096] Endgame. KRR-KRB} 25. Bb5 {[%emt 0:00:01]} Kd7 {[%emt 0:00:05][%cal Of6f5]} 26. Rd1+ {[%emt 0:00:11]} (26. Bxc6+ Kxc6 27. Kxb2 Rb8+ 28. Kc3 Ra8) (26. g4 $5) 26... Kc7 {[%emt 0:00:05]} 27. Bxc6 {[%emt 0:00:03]} Kxc6 {[%emt 0:00:03]} 28. Kxb2 {[%emt 0:01:45]} Rb8+ {[%emt 0:00:06]} 29. Kc3 {[%emt 0:00:22]} Ra8 {[%emt 0:00:06]} 30. Kb3 {[%emt 0:01:18] Weighted Error Value: White=0.12 (very precise) /Black=0.18 (very precise) .  Mistake:       	---       	Black=2      Inaccurate:     	White=4     	Black=1      OK:         	White=9     	Black=6      Best:        	White=1     	Black=1      Brilliant:      	White=1     	---} 1/2-1/2

[Event "VIII Open Semana Santa 2024"]
[Site "San Vicente del Raspeig"]
[Date "2024.03.31"]
[Round "7.16"]
[White "Cesar Maestre, Bernardo"]
[Black "Agmanov, Zhandos"]
[Result "1/2-1/2"]
[ECO "B52"]
[WhiteElo "2381"]
[BlackElo "2458"]
[Annotator "TA"]
[PlyCount "23"]
[EventDate "2024.03.27"]
[EventType "swiss"]
[EventCountry "ESP"]
[SourceTitle "playchess.com"]
[Source "ChessBase"]
[SourceQuality "1"]
[TimeControl "5400+30"]

{[%evp 15,23,19,13,3,0,0,1,-21,0,-8]} 1. e4 {[%emt 0:00:03]} c5 {[%emt 0:00:08]} 2. Nf3 {[%emt 0:00:05]} d6 {[%emt 0:00:14]} 3. Bb5+ {[%emt 0:00:11]} Bd7 {[%emt 0:00:07]} 4. Bxd7+ {[%emt 0:00:20]} Nxd7 {[%emt 0:00:09]} 5. O-O {[%emt 0:00:39]} e6 {[%emt 0:00:30]} 6. b3 {[%emt 0:01:15]} Ngf6 {[%emt 0:03:56]} 7. Re1 {[%emt 0:00:16]} Be7 {[%emt 0:03:14]} 8. Bb2 {[%emt 0:01:36]} O-O {[%emt 0:01:04] The position is equal.} 9. d3 {[%emt 0:07:14]} a6 {[%emt 0:05:06]} 10. Nbd2 {[%emt 0:01:41]} Rc8 {[%emt 0:01:51]} 11. e5 {[%emt 0:03:31]} Ne8 {[%emt 0:11:20]} 12. exd6 {[%emt 0:00:44] Not much happened in this game.   Weighted Error Value: White=0.11 (very precise) /Black=0.06 (flawless) .  OK:         	White=1     	Black=1} 1/2-1/2

[Event "VIII Open Semana Santa 2024"]
[Site "San Vicente del Raspeig"]
[Date "2024.03.31"]
[Round "7.17"]
[White "Campora, Daniel H."]
[Black "Marin, Mihail"]
[Result "0-1"]
[ECO "A49"]
[WhiteElo "2372"]
[BlackElo "2456"]
[Annotator "TA"]
[PlyCount "76"]
[EventDate "2024.03.27"]
[EventType "swiss"]
[EventCountry "ESP"]
[SourceTitle "playchess.com"]
[Source "ChessBase"]
[SourceQuality "1"]
[TimeControl "5400+30"]

{[%evp 16,76,30,24,26,33,28,18,24,33,22,17,30,35,31,32,25,21,25,0,0,0,0,0,0,0,0,0,0,-26,12,13,16,4,2,0,32,35,22,9,22,0,0,0,-1,-30,-12,-35,-14,-24,-35,-33,-27,-35,-37,-23,-18,-35,-41,-96,-37,-43,-28]} 1. Nf3 {[%emt 0:00:04]} Nf6 {[%emt 0:00:22]} 2. b3 {[%emt 0:00:39]} g6 {[%emt 0:00:35]} 3. Bb2 {[%emt 0:00:17]} Bg7 {[%emt 0:00:06]} 4. g3 {[%emt 0:00:24]} O-O {[%emt 0:03:26]} 5. Bg2 {[%emt 0:00:49]} d6 {[%emt 0:00:30]} 6. d4 {[%emt 0:01:05]} Nbd7 {[%emt 0:00:43]} 7. O-O {[%emt 0:00:43]} c6 {[%emt 0:01:21]} 8. Nbd2 {[%emt 0:00:55]} Qc7 {[%emt 0:03:37]} 9. a4 {[%emt 0:01:00]} Re8 {[%emt 0:06:26]} 10. a5 {[%emt 0:09:44]} Rb8 {[%emt 0:01:37]} 11. Re1 {[%emt 0:06:41]} b5 {[%emt 0:06:02] The position is equal.} 12. axb6 {[%emt 0:00:51]} axb6 {[%emt 0:00:06]} 13. e4 {[%emt 0:11:35]} e5 {[%emt 0:01:49]} 14. c4 {[%emt 0:01:08]} Nf8 {[%emt 0:04:55]} 15. Qc2 {[%emt 0:03:35]} N6d7 {[%emt 0:01:09]} 16. b4 {[%emt 0:13:05]} Bb7 {[%emt 0:07:53]} 17. dxe5 {[%emt 0:04:40]} dxe5 {[%emt 0:00:14]} 18. Bh3 {[%emt 0:03:13]} Ne6 {[%emt 0:02:00]} 19. c5 {[%emt 0:04:13]} bxc5 {[%emt 0:05:25]} 20. Bxe6 {[%emt 0:00:42]} Rxe6 {[%emt 0:00:05]} 21. bxc5 {[%emt 0:00:03]} Bf8 {[%emt 0:00:24][%cal Ob7c8]} 22. Nb3 {[%emt 0:02:46]} Qc8 {[%emt 0:09:23]} 23. Red1 {[%emt 0:01:10]} Re7 {[%emt 0:02:10]} 24. Ra7 {[%emt 0:07:19]} Ba6 {[%emt 0:03:27]} 25. Kg2 {[%emt 0:01:28]} Rb7 {[%emt 0:05:05]} 26. Rxa6 {[%emt 0:04:21]} Rxb3 $1 {[%emt 0:00:06]} 27. Ra7 {[%emt 0:01:31]} Rb5 {[%emt 0:05:34]} 28. Bc1 {[%emt 0:02:22]} Nxc5 {[%emt 0:02:09]} 29. Rxe7 {[%emt 0:10:50]} Bxe7 {[%emt 0:00:06]} 30. Nxe5 {[%emt 0:00:19]} Qe6 {[%emt 0:00:36] Prevents Qc4} 31. Nf3 {[%emt 0:01:09] [#] Nd4 would now be deadly.} Qxe4 {[%emt 0:02:26]} 32. Qxe4 {[%emt 0:01:31]} Nxe4 {[%emt 0:00:06]} 33. Re1 {[%emt 0:00:27]} f5 {[%emt 0:00:57]} 34. Nd4 {[%emt 0:01:39][%csl LRb5,LRc6]} Bb4 {[%emt 0:04:05]} 35. Re2 {[%emt 0:02:24]} Rb6 {[%emt 0:08:36]} 36. f3 {[%emt 0:03:14]} Nd6 {[%emt 0:03:09]} 37. Bf4 {[%emt 0:00:11] [#]} ({Better is} 37. Be3 $15 c5 38. Ne6) 37... Bc3 {[%emt 0:02:08]} (37... Nb5 $1 $17 {[%cal Rb5d4]} 38. Nc2 Bf8) 38. Ne6 $15 {[%emt 0:00:45]} Nf7 {[%emt 0:05:28][%mdl 32768] Weighted Error Value: White=0.08 (flawless) /Black=0.06 (flawless) .  Mistake:       	White=1     	Black=1      Inaccurate:     	White=2     	Black=2      OK:         	White=14    	Black=11     Best:        	---       	Black=2      Strong:       	---       	Black=1     . Loss on time!?} 0-1

[Event "VIII Open Semana Santa 2024"]
[Site "San Vicente del Raspeig"]
[Date "2024.03.31"]
[Round "7.18"]
[White "Levin, Guy"]
[Black "Tippa, Aswath Srisai"]
[Result "1-0"]
[ECO "A17"]
[WhiteElo "2452"]
[BlackElo "1647"]
[Annotator "RC"]
[PlyCount "105"]
[EventDate "2024.03.27"]
[EventType "swiss"]
[EventCountry "ESP"]
[SourceTitle "playchess.com"]
[Source "ChessBase"]
[SourceQuality "1"]
[TimeControl "5400+30"]

1. c4 {[%emt 1:31:00]} e6 {[%emt 0:00:40]} 2. Nc3 {[%emt 0:00:00]} d5 {[%emt 0:00:08]} 3. d4 {[%emt 0:00:00]} Nf6 {[%emt 0:00:10]} 4. cxd5 {[%emt 0:00:00]} exd5 {[%emt 0:00:06]} 5. g3 {[%emt 0:00:00]} c6 {[%emt 0:02:54]} 6. Bg2 {[%emt 0:00:00]} Bd6 {[%emt 0:00:11]} 7. Bf4 {[%emt 0:00:00]} O-O {[%emt 0:02:14]} 8. Nf3 {[%emt 0:00:00]} Bf5 {[%emt 0:03:43]} 9. Bxd6 {[%emt 0:00:00]} Qxd6 {[%emt 0:00:05]} 10. Nh4 {[%emt 0:00:00]} Be6 {[%emt 0:04:14]} 11. O-O {[%emt 0:00:00]} Nbd7 {[%emt 0:00:21]} 12. e3 {[%emt 0:00:00]} Nb6 {[%emt 0:03:37]} 13. Qc2 {[%emt 0:00:00]} Qd7 {[%emt 0:00:16]} 14. Rfc1 {[%emt 0:00:00]} Rfe8 {[%emt 0:02:03]} 15. Bf1 {[%emt 0:00:00]} Nc4 {[%emt 0:02:32]} 16. Na4 {[%emt 0:00:00]} Nd6 {[%emt 0:00:54]} 17. Nc5 {[%emt 0:00:00]} Qc8 {[%emt 0:01:47]} 18. Bd3 {[%emt 0:00:00]} g6 {[%emt 0:06:05]} 19. Rab1 {[%emt 0:00:00]} Bh3 {[%emt 0:01:56]} 20. b4 {[%emt 0:00:00]} Kg7 {[%emt 0:02:58]} 21. a4 {[%emt 0:00:00]} a6 {[%emt 0:08:05]} 22. Qb2 {[%emt 0:00:00]} Qg4 {[%emt 0:10:08]} 23. Ng2 {[%emt 0:00:00]} Bxg2 {[%emt 0:11:04]} 24. Kxg2 {[%emt 0:00:00]} Re7 {[%emt 0:00:21]} 25. h3 {[%emt 0:00:00]} Qg5 {[%emt 0:01:32]} 26. h4 {[%emt 0:00:00]} Qg4 {[%emt 0:00:34]} 27. Qe2 {[%emt 0:00:00]} Qxe2 {[%emt 0:07:48]} 28. Bxe2 {[%emt 0:00:00]} Nfe8 {[%emt 0:01:26]} 29. b5 {[%emt 0:00:00]} axb5 {[%emt 0:00:15]} 30. axb5 {[%emt 0:00:00]} Ra2 {[%emt 0:00:43]} 31. bxc6 {[%emt 0:00:00]} bxc6 {[%emt 0:00:39]} 32. Kf1 {[%emt 0:00:00]} Nf6 {[%emt 0:02:25]} 33. Nd3 {[%emt 0:00:54]} Nfe4 {[%emt 0:09:45]} 34. Nb4 {[%emt 0:01:09]} Ra3 {[%emt 0:00:16]} 35. Ra1 {[%emt 0:05:23]} Rxa1 {[%emt 0:03:17]} 36. Rxa1 {[%emt 0:00:02]} Re6 {[%emt 0:00:13]} 37. Kg2 {[%emt 0:02:08]} h5 {[%emt 0:06:27]} 38. Rc1 {[%emt 0:01:08]} Rf6 {[%emt 0:04:20]} 39. f3 {[%emt 0:00:29]} Nf5 {[%emt 0:00:08]} 40. fxe4 {[%emt 0:00:22]} Nxe3+ {[%emt 0:00:07]} 41. Kg1 {[%emt 0:00:18]} dxe4 {[%emt 0:00:07]} 42. Rxc6 {[%emt 0:00:47]} Nf5 {[%emt 0:00:10]} 43. Rxf6 {[%emt 0:03:21]} Kxf6 {[%emt 0:00:02]} 44. Nd5+ {[%emt 0:00:41]} Ke6 {[%emt 0:00:27]} 45. Bc4 {[%emt 0:00:20]} Nxg3 {[%emt 0:00:43]} 46. Kf2 {[%emt 0:01:11]} Nf5 {[%emt 0:04:02]} 47. Ne3+ {[%emt 0:00:06]} Kf6 {[%emt 0:00:38]} 48. Nxf5 {[%emt 0:00:05]} Kxf5 {[%emt 0:00:05]} 49. Bxf7 {[%emt 0:00:11]} g5 {[%emt 0:01:12]} 50. hxg5 {[%emt 0:00:18]} h4 {[%emt 0:01:01]} 51. g6 {[%emt 0:00:17]} h3 {[%emt 0:00:08]} 52. g7 {[%emt 0:00:12]} h2 {[%emt 0:00:43]} 53. Kg2 {[%emt 0:00:18]} 1-0

[Event "VIII Open Semana Santa 2024"]
[Site "San Vicente del Raspeig"]
[Date "2024.03.31"]
[Round "7.19"]
[White "Labiano Hernandez, Juan"]
[Black "Gkoumas, Georgios"]
[Result "1/2-1/2"]
[ECO "A45"]
[WhiteElo "2362"]
[BlackElo "2445"]
[Annotator "RC"]
[PlyCount "159"]
[EventDate "2024.03.27"]
[EventType "swiss"]
[EventCountry "ESP"]
[SourceTitle "playchess.com"]
[Source "ChessBase"]
[SourceQuality "1"]
[TimeControl "5400+30"]

1. d4 {[%emt 0:00:04]} Nf6 {[%emt 0:05:56]} 2. Bf4 {[%emt 0:00:07]} b6 {[%emt 0:00:19]} 3. f3 {[%emt 0:07:05]} e6 {[%emt 0:07:15]} 4. e4 {[%emt 1:25:14]} d5 {[%emt 0:02:22]} 5. e5 {[%emt 0:00:00]} Nfd7 {[%emt 0:00:17]} 6. c3 {[%emt 0:00:00]} c5 {[%emt 0:05:50]} 7. Bb5 {[%emt 0:00:00]} a6 {[%emt 0:02:23]} 8. Bd3 {[%emt 0:00:00]} Nc6 {[%emt 0:13:46]} 9. Ne2 {[%emt 0:00:00]} f6 {[%emt 0:07:08]} 10. Qc2 {[%emt 0:00:00]} fxe5 {[%emt 0:50:14]} 11. Bg6+ {[%emt 0:00:00]} hxg6 {[%emt 0:00:00]} 12. Qxg6+ {[%emt 0:00:00]} Ke7 {[%emt 0:00:00]} 13. dxe5 {[%emt 0:00:00]} Ncxe5 {[%emt 0:00:00]} 14. Bxe5 {[%emt 0:00:00]} Nxe5 {[%emt 0:00:00]} 15. Qg5+ {[%emt 0:00:00]} Kd7 {[%emt 0:00:00]} 16. Qxe5 {[%emt 0:00:00]} Qf6 {[%emt 0:00:00]} 17. Qe3 {[%emt 0:00:00]} Bd6 {[%emt 0:00:00]} 18. Nd2 {[%emt 0:00:00]} Bb7 {[%emt 0:00:00]} 19. O-O-O {[%emt 0:00:00]} Kc7 {[%emt 0:00:00]} 20. c4 {[%emt 0:00:00]} Be5 {[%emt 0:00:00]} 21. Qb3 {[%emt 0:00:00]} g5 {[%emt 0:00:00]} 22. Nc3 {[%emt 0:00:00]} Bxc3 {[%emt 0:00:00]} 23. Qxc3 {[%emt 0:00:00]} Qxc3+ {[%emt 0:00:00]} 24. bxc3 {[%emt 0:00:00]} b5 {[%emt 0:07:00]} 25. Rhe1 {[%emt 0:00:00]} bxc4 {[%emt 0:00:00]} 26. Rxe6 {[%emt 0:00:00]} Rae8 {[%emt 0:00:00]} 27. Rg6 {[%emt 0:00:00]} Rxh2 {[%emt 0:00:00]} 28. Rxg5 {[%emt 0:00:00]} Re2 {[%emt 0:00:00]} 29. Rg1 {[%emt 0:00:00]} Bc6 {[%emt 0:00:00]} 30. f4 {[%emt 0:01:25]} Rh4 {[%emt 0:00:00]} 31. Rf1 {[%emt 0:02:13]} Re3 {[%emt 0:00:00]} 32. Nb1 {[%emt 0:00:38]} Rh7 {[%emt 0:00:00]} 33. f5 {[%emt 0:00:21]} Rhe7 {[%emt 0:00:00]} 34. g4 {[%emt 0:05:38]} Re1+ {[%emt 0:00:00]} 35. Rxe1 {[%emt 0:00:05]} Rxe1+ {[%emt 0:00:00]} 36. Kb2 {[%emt 0:05:40]} Re2+ {[%emt 0:00:00]} 37. Ka3 {[%emt 0:00:00]} Rf2 {[%emt 0:00:28]} 38. Rg7+ {[%emt 0:00:00]} Bd7 {[%emt 0:00:46]} 39. Rg6 {[%emt 0:01:30]} Rf1 {[%emt 0:03:53]} 40. Nd2 {[%emt 0:00:00]} Rf2 {[%emt 0:00:01]} 41. Nb1 {[%emt 0:00:00]} Rf1 {[%emt 0:00:17]} 42. Nd2 {[%emt 0:00:00]} Rf2 {[%emt 0:00:04]} 43. Nb1 {[%emt 0:00:00]} a5 {[%emt 0:02:39]} 44. f6 {[%emt 0:00:02]} Kd6 {[%emt 0:00:00]} 45. f7+ {[%emt 0:02:00]} Be6 {[%emt 0:01:14]} 46. Ka4 {[%emt 0:00:40]} Rxf7 {[%emt 0:00:04]} 47. Na3 {[%emt 0:00:06]} Ke5 {[%emt 0:00:17]} 48. Nb5 {[%emt 0:00:40]} Rf4 {[%emt 0:01:42]} 49. Kxa5 {[%emt 0:00:55]} d4 {[%emt 0:00:19]} 50. Rg5+ {[%emt 0:00:30]} Kf6 51. Rxc5 {[%emt 0:00:14]} d3 {[%emt 0:00:20]} 52. Rc6 {[%emt 0:00:40]} Ke7 {[%emt 0:01:09]} 53. Rc7+ {[%emt 0:00:33]} Bd7 {[%emt 0:00:22]} 54. Rc5 {[%emt 0:00:10]} Rxg4 {[%emt 0:00:53]} 55. Rd5 {[%emt 0:00:47]} Be6 {[%emt 0:00:21]} 56. Rd4 {[%emt 0:00:14]} Rg2 {[%emt 0:00:18]} 57. Nd6 {[%emt 0:00:24]} Rxa2+ {[%emt 0:00:35]} 58. Kb4 {[%emt 0:00:09]} Rb2+ {[%emt 0:00:13]} 59. Kc5 {[%emt 0:00:27]} Rb8 {[%emt 0:00:21]} 60. Ne4 {[%emt 0:00:56]} Rc8+ {[%emt 0:00:10]} 61. Kb4 {[%emt 0:00:06]} Rc7 {[%emt 0:00:29]} 62. Nd2 {[%emt 0:00:39]} Kf6 {[%emt 0:00:35]} 63. Ka3 {[%emt 0:00:09]} Rb7 {[%emt 0:00:23]} 64. Ka2 {[%emt 0:00:25]} Rb5 {[%emt 0:00:22]} 65. Ka3 {[%emt 0:00:28]} Rb6 {[%emt 0:00:25]} 66. Rf4+ {[%emt 0:00:24]} Ke5 {[%emt 0:00:22]} 67. Re4+ {[%emt 0:00:16]} Kf5 {[%emt 0:00:10]} 68. Rd4 {[%emt 0:00:12]} Rb5 {[%emt 0:00:28]} 69. Ka2 {[%emt 0:00:22]} Bd5 {[%emt 0:00:09]} 70. Ka3 {[%emt 0:00:25]} Ke5 {[%emt 0:00:10]} 71. Rh4 {[%emt 0:00:25]} Rb8 {[%emt 0:00:01]} 72. Rh5+ {[%emt 0:00:20]} Kd6 {[%emt 0:00:05]} 73. Rg5 {[%emt 0:02:31]} Kc6 {[%emt 0:00:32]} 74. Rf5 {[%emt 0:00:23]} Re8 {[%emt 0:00:24]} 75. Kb4 {[%emt 0:00:19]} Rb8+ {[%emt 0:00:39]} 76. Ka3 {[%emt 0:00:07]} Re8 {[%emt 0:01:20]} 77. Kb4 {[%emt 0:00:04]} Re2 {[%emt 0:00:06]} 78. Rf6+ {[%emt 0:01:10]} Kd7 {[%emt 0:02:15]} 79. Kc5 {[%emt 0:01:03]} Rxd2 {[%emt 0:00:03]} 80. Rd6+ {[%emt 0:00:15]} 1/2-1/2

[Event "VIII Open Semana Santa 2024"]
[Site "San Vicente del Raspeig"]
[Date "2024.03.31"]
[Round "7.20"]
[White "Schulman, Julia"]
[Black "Fernandez Lopez, Francisco J."]
[Result "1/2-1/2"]
[ECO "B03"]
[WhiteElo "1732"]
[BlackElo "1903"]
[Annotator "TA"]
[PlyCount "102"]
[EventDate "2024.03.27"]
[EventType "swiss"]
[EventCountry "ESP"]
[SourceTitle "playchess.com"]
[Source "ChessBase"]
[SourceQuality "1"]
[TimeControl "5400+30"]

{[%evp 9,102,6,59,51,72,70,74,31,37,29,35,40,35,7,35,34,47,12,19,16,22,12,20,1,18,21,17,18,27,32,28,20,58,50,31,33,44,27,24,24,20,17,31,33,33,22,30,16,21,0,236,120,106,118,101,28,33,25,73,68,52,0,3,1,12,0,0,0,0,0,0,0,0,0,50,0,50,50,50,50,50,51,52,52,52,58,56,0,0,0,0,0,0,0,0]} 1. e4 {[%emt 0:03:16][%cal Be2e4,Be4e5][%mdl 32]} Nf6 {[%emt 0:01:31]} 2. e5 {[%emt 0:00:29]} Nd5 {[%emt 0:00:09]} 3. d4 {[%emt 0:00:45]} d6 {[%emt 0:00:10]} 4. Bc4 {[%emt 0:00:46]} Nb6 {[%emt 0:00:19]} 5. Bb3 {[%emt 0:00:17]} g6 {[%emt 0:00:55]} (5... a5 $11) 6. Qe2 {[%emt 0:08:32]} d5 {[%emt 0:03:52]} 7. Nf3 {[%emt 0:01:29]} Bg7 {[%emt 0:00:43]} 8. h4 {[%emt 0:01:26] White is better.} Bg4 {[%emt 0:03:30]} 9. Bf4 {[%emt 0:02:27]} Nc6 {[%emt 0:01:11] ...Nxd4 is the strong threat.} 10. c3 {[%emt 0:01:35]} Qd7 {[%emt 0:01:57]} 11. Qe3 {[%emt 0:00:58]} Bxf3 {[%emt 0:00:40]} 12. Qxf3 {[%emt 0:00:22]} O-O-O {[%emt 0:00:41]} 13. Nd2 {[%emt 0:02:37]} f6 {[%emt 0:02:00]} 14. exf6 {[%emt 0:00:45]} Bxf6 {[%emt 0:00:25]} 15. O-O-O {[%emt 0:00:52]} e5 {[%emt 0:02:10]} 16. dxe5 {[%emt 0:02:45]} Bxe5 {[%emt 0:01:57]} 17. Bxe5 {[%emt 0:07:32]} Nxe5 {[%emt 0:00:51]} 18. Qg3 {[%emt 0:01:13]} Qf5 {[%emt 0:09:45]} 19. Bc2 {[%emt 0:00:52] Wards off Nd3+} Qf6 {[%emt 0:00:24]} 20. h5 {[%emt 0:02:39]} g5 {[%emt 0:08:22]} 21. h6 {[%emt 0:02:34]} Nf7 {[%emt 0:07:58]} 22. Rde1 {[%emt 0:06:35] Hoping for Qh3+.} Kb8 {[%emt 0:01:06]} 23. Qf3 {[%emt 0:02:13]} (23. Nf3 {feels hotter.} Nc4 24. Nd4 Rhe8 25. Rxe8 Rxe8 26. Qf3) 23... Rd6 {[%emt 0:13:19]} 24. Qxf6 {[%emt 0:04:03]} Rxf6 {[%emt 0:00:09]} 25. f3 {[%emt 0:06:00]} Nc8 {[%emt 0:03:40]} 26. Rh5 {[%emt 0:02:45]} c6 {[%emt 0:04:37][%cal Oc8d6]} 27. c4 {[%emt 0:05:23]} dxc4 {[%emt 0:10:32]} 28. Ne4 {[%emt 0:01:21] Inhibits Ncd6.} Re6 {[%emt 0:04:20]} 29. Rd1 {[%emt 0:03:14]} Rg6 $2 {[%emt 0:08:12]} (29... Nb6 $11 {and Black has nothing to worry.}) 30. Nc5 {[%emt 0:04:37]} (30. Rd7 $18 Rxh6 31. Rxh6 Nxh6 32. Nc5 (32. Nxg5 Rg8 $18)) 30... Rd6 $16 {[%emt 0:02:10] [#]} (30... Rxh6 $2 31. Rxh6 Nxh6 32. Rd7 $18) 31. Rxd6 $1 {[%emt 0:00:53]} Ncxd6 {[%emt 0:00:11] [#]} 32. Nd7+ {[%emt 0:01:42]} (32. Ne6 $1 $16 g4 33. fxg4) 32... Kc7 $11 {[%emt 0:00:45]} 33. Nf6 {[%emt 0:00:09]} Kd8 {[%emt 0:01:09]} (33... Nc8 $11) 34. Nxh7 $16 {[%emt 0:00:59] White is much more active.} (34. Bxh7 $2 Ke7 35. Ng8+ Ke6 $19) 34... Ke7 {[%emt 0:00:37]} 35. Nxg5 {[%emt 0:01:00]} (35. g4 $14 {is more appropriate.}) 35... Nxg5 $11 {[%emt 0:00:34]} 36. Rxg5 {[%emt 0:00:07]} Rxh6 $14 {[%emt 0:00:09][%mdl 4096] Endgame. KRB-KRN} 37. Rg7+ {[%emt 0:02:12]} Ke6 {[%emt 0:00:22]} 38. Rg6+ {[%emt 0:00:18]} Rxg6 {[%emt 0:00:23]} 39. Bxg6 $11 {[%emt 0:00:05] KB-KN} Kf6 {[%emt 0:00:31]} 40. Bc2 {[%emt 0:00:36]} Ke5 {[%emt 0:00:23]} 41. g3 {[%emt 0:01:00][%cal Bg2g3,Bg3g4,Bg4g5][%mdl 32]} b5 {[%emt 0:01:37]} (41... Nf5 $1 $11) 42. f4+ {[%emt 0:00:51]} (42. Kd2 $14) 42... Kf6 {[%emt 0:01:22]} ({Black should try} 42... Kd4 $11) 43. g4 $14 {[%emt 0:00:31]} b4 {[%emt 0:00:34]} 44. g5+ {[%emt 0:00:41]} Ke6 {[%emt 0:00:17]} 45. Kd2 {[%emt 0:04:10]} c5 {[%emt 0:01:19]} 46. Ke3 {[%emt 0:03:50]} a5 {[%emt 0:00:35]} 47. Kf3 {[%emt 0:03:00]} Nf5 {[%emt 0:00:38] Threatens to win with ...Nd4+.} 48. Bxf5+ {[%emt 0:06:49]} ({White should play} 48. Ke4 $14) 48... Kxf5 $11 {[%emt 0:00:11] The position is equal.} 49. Ke2 {[%emt 0:00:51]} a4 {[%emt 0:00:42]} (49... Kxf4 $2 {loses.} 50. g6 Ke4 51. g7 $18) 50. Kd2 {[%emt 0:00:16]} Kg6 {[%emt 0:00:46]} (50... Kxf4 $2 {too greedy.} 51. g6 $18) 51. Kc2 {[%emt 0:00:59]} Kf5 {[%emt 0:00:12] Weighted Error Value: White=0.16 (very precise) /Black=0.19 (very precise) .  Loses game:     	---       	Black=1      Mistake:       	White=5     	Black=3      Inaccurate:     	White=3     	Black=2      OK:         	White=15    	Black=18     Best:        	White=1     	Black=4      Strong:       	White=1     	---} 1/2-1/2

[Event "VIII Open Semana Santa 2024"]
[Site "San Vicente del Raspeig"]
[Date "2024.03.31"]
[Round "8.1"]
[White "Piorun, Kacper"]
[Black "Alekseenko, Kirill"]
[Result "1/2-1/2"]
[WhiteElo "2599"]
[BlackElo "2650"]
[Annotator "TA"]
[PlyCount "17"]
[EventDate "2024.03.27"]
[EventType "swiss"]
[EventCountry "ESP"]
[SourceTitle "playchess.com"]
[Source "ChessBase"]
[SourceQuality "1"]
[TimeControl "5400+30"]

{[%evp 12,17,4,-8,0,0,5,4]} 1. e4 {[%emt 0:00:06]} e5 {[%emt 0:00:07]} 2. Nf3 {[%emt 0:00:04]} Nc6 {[%emt 0:00:07]} 3. Nc3 {[%emt 0:00:19]} Nf6 {[%emt 0:00:10]} 4. d4 {[%emt 0:00:09]} exd4 {[%emt 0:00:09]} 5. Nxd4 {[%emt 0:00:05]} Bb4 {[%emt 0:00:12]} 6. Nxc6 {[%emt 0:00:09]} bxc6 {[%emt 0:00:08]} 7. Bd3 $1 {[%emt 0:00:13] Die Stellung ist ausgeglichen.} O-O {[%emt 0:00:14][%cal Of6e4]} ({Ein No Go ist} 7... Bxc3+ 8. bxc3 Qe7 9. O-O $14) 8. O-O {[%emt 0:00:06]} d5 {[%emt 0:00:08]} 9. exd5 {[%emt 0:00:34] Ein ziemlich ruhiges Remis.   Gewichteter Fehlerwert: Weiß=0.00 (makellos) /Schwarz=0.04 (makellos) .  OK:         	---       	Schwarz=1} 1/2-1/2